[Event "Titled Tuesday Blitz June 13 Early 2023"]
[White "Perera Alfonso, Rene Humberto"]
[Black "Luxama, Jacques Muller"]
[WhiteFideId "3514722"]
[BlackFideId "11900113"]
[WhiteElo "2313"]
[BlackElo "1931"]
[Result "1-0"]
[Round "2"]
[TimeControl "180+2"]
[Date "2023.06.13"]
[WhiteClock "0:01:18"]
[BlackClock "0:00:00"]
[Board "209"]

1. e4 {[%clk 0:02:59]}  e6 {[%clk 0:02:57]} 2. d4 {[%clk 0:02:58]}  d5 {[%clk 0:02:57]} 3. Nc3 {[%clk 0:02:57]}  Nf6 {[%clk 0:02:51]} 4. e5 {[%clk 0:02:56]}  Nfd7 {[%clk 0:02:46]} 5. f4 {[%clk 0:02:56]}  c5 {[%clk 0:02:45]} 6. Nf3 {[%clk 0:02:55]}  Nc6 {[%clk 0:02:44]} 7. Be3 {[%clk 0:02:55]}  a6 {[%clk 0:02:36]} 8. Qd2 {[%clk 0:02:51]}  b5 {[%clk 0:02:34]} 9. Nd1 {[%clk 0:02:31]}  Bb7 {[%clk 0:02:16]} 10. Be2 {[%clk 0:02:30]}  Qb6 {[%clk 0:02:10]} 11. O-O {[%clk 0:02:27]}  b4 {[%clk 0:01:55]} 12. c3 {[%clk 0:02:25]}  cxd4 {[%clk 0:01:51]} 13. cxd4 {[%clk 0:02:20]}  Be7 {[%clk 0:01:47]} 14. Nf2 {[%clk 0:02:20]}  a5 {[%clk 0:01:42]} 15. Rfc1 {[%clk 0:02:18]}  Ba6 {[%clk 0:01:40]} 16. Nd3 {[%clk 0:02:15]}  O-O {[%clk 0:01:33]} 17. Nc5 {[%clk 0:02:14]}  Bxc5 {[%clk 0:01:21]} 18. dxc5 {[%clk 0:02:11]}  Qb7 {[%clk 0:01:09]} 19. Bd1 {[%clk 0:02:10]}  Rfd8 {[%clk 0:00:57]} 20. Bc2 {[%clk 0:02:09]}  Nf8 {[%clk 0:00:54]} 21. Qf2 {[%clk 0:02:08]}  Bb5 {[%clk 0:00:41]} 22. h4 {[%clk 0:02:07]}  a4 {[%clk 0:00:38]} 23. h5 {[%clk 0:02:05]}  h6 {[%clk 0:00:37]} 24. Nd4 {[%clk 0:02:05]}  Nxd4 {[%clk 0:00:32]} 25. Bxd4 {[%clk 0:02:06]}  Bc4 {[%clk 0:00:26]} 26. b3 {[%clk 0:02:03]}  axb3 {[%clk 0:00:21]} 27. axb3 {[%clk 0:02:03]}  Bb5 {[%clk 0:00:21]} 28. f5 {[%clk 0:02:02]}  exf5 {[%clk 0:00:17]} 29. Qxf5 {[%clk 0:02:01]}  Qd7 {[%clk 0:00:13]} 30. Qf2 {[%clk 0:01:44]}  Qg4 {[%clk 0:00:11]} 31. Rxa8 {[%clk 0:01:36]}  Rxa8 {[%clk 0:00:09]} 32. Bf5 {[%clk 0:01:36]}  Qxh5 {[%clk 0:00:07]} 33. c6 {[%clk 0:01:36]}  Qg5 {[%clk 0:00:06]} 34. Be3 {[%clk 0:01:32]}  Qe7 {[%clk 0:00:02]} 35. c7 {[%clk 0:01:29]}  Ba6 {[%clk 0:00:00]} 36. c8=Q {[%clk 0:01:18]} 1-0


[Site "https://www.chess.com"]

[Event "Titled Tuesday Blitz June 13 Early 2023"]
[White "Xavier_mompel"]
[Black "Kielinkei"]
[WhiteElo "2192"]
[BlackElo "2470"]
[Result "1/2-1/2"]
[Round "2"]
[TimeControl "180+2"]
[Date "2023.06.13"]
[WhiteClock "0:00:12"]
[BlackClock "0:00:31"]
[Board "211"]

1. e4 {[%clk 0:03:00]}  c5 {[%clk 0:02:59]} 2. Nf3 {[%clk 0:03:00]}  e6 {[%clk 0:03:00]} 3. d4 {[%clk 0:03:00]}  cxd4 {[%clk 0:03:01]} 4. Nxd4 {[%clk 0:03:00]}  Nc6 {[%clk 0:03:01]} 5. Nc3 {[%clk 0:03:00]}  Qc7 {[%clk 0:03:02]} 6. g3 {[%clk 0:02:56]}  a6 {[%clk 0:03:01]} 7. Bg2 {[%clk 0:02:56]}  Nf6 {[%clk 0:03:00]} 8. O-O {[%clk 0:02:56]}  Bc5 {[%clk 0:02:53]} 9. Be3 {[%clk 0:02:50]}  Nxd4 {[%clk 0:02:39]} 10. Bxd4 {[%clk 0:02:51]}  Bxd4 {[%clk 0:02:40]} 11. Qxd4 {[%clk 0:02:49]}  d6 {[%clk 0:02:16]} 12. Rad1 {[%clk 0:02:47]}  Ke7 {[%clk 0:02:13]} 13. Rd2 {[%clk 0:02:33]}  Qc5 {[%clk 0:02:07]} 14. Rfd1 {[%clk 0:02:29]}  Qxd4 {[%clk 0:02:04]} 15. Rxd4 {[%clk 0:02:30]}  Rd8 {[%clk 0:02:04]} 16. e5 {[%clk 0:02:27]}  Ne8 {[%clk 0:02:02]} 17. exd6+ {[%clk 0:02:16]}  Rxd6 {[%clk 0:02:03]} 18. Rxd6 {[%clk 0:02:07]}  Nxd6 {[%clk 0:02:03]} 19. Ne4 {[%clk 0:02:08]}  Nxe4 {[%clk 0:02:01]} 20. Bxe4 {[%clk 0:02:09]}  Bd7 {[%clk 0:01:56]} 21. Bxb7 {[%clk 0:01:53]}  Rb8 {[%clk 0:01:56]} 22. Bxa6 {[%clk 0:01:53]}  Rxb2 {[%clk 0:01:56]} 23. Bd3 {[%clk 0:01:50]}  Rxa2 {[%clk 0:01:51]} 24. Kg2 {[%clk 0:01:31]}  Ba4 {[%clk 0:01:43]} 25. Rd2 {[%clk 0:01:22]}  h6 {[%clk 0:01:37]} 26. Re2 {[%clk 0:01:18]}  Kd6 {[%clk 0:01:34]} 27. h4 {[%clk 0:01:02]}  g6 {[%clk 0:01:26]} 28. f3 {[%clk 0:00:56]}  f5 {[%clk 0:01:22]} 29. Rxe6+ {[%clk 0:00:49]}  Kxe6 {[%clk 0:01:20]} 30. Bc4+ {[%clk 0:00:49]}  Ke5 {[%clk 0:01:18]} 31. Bxa2 {[%clk 0:00:50]}  Bxc2 {[%clk 0:01:19]} 32. Bf7 {[%clk 0:00:44]}  g5 {[%clk 0:01:14]} 33. hxg5 {[%clk 0:00:43]}  hxg5 {[%clk 0:01:15]} 34. f4+ {[%clk 0:00:42]}  Kf6 {[%clk 0:01:13]} 35. Be8 {[%clk 0:00:34]}  g4 {[%clk 0:01:02]} 36. Bc6 {[%clk 0:00:31]}  Ke6 {[%clk 0:01:01]} 37. Kf2 {[%clk 0:00:29]}  Kd6 {[%clk 0:00:54]} 38. Bb7 {[%clk 0:00:28]}  Kc5 {[%clk 0:00:48]} 39. Ke3 {[%clk 0:00:28]}  Kc4 {[%clk 0:00:42]} 40. Ba6+ {[%clk 0:00:26]}  Kc3 {[%clk 0:00:42]} 41. Bb7 {[%clk 0:00:21]}  Bb1 {[%clk 0:00:40]} 42. Bd5 {[%clk 0:00:13]}  Bd3 {[%clk 0:00:36]} 43. Bc6 {[%clk 0:00:12]}  Bc2 {[%clk 0:00:33]} 44. Bd5 {[%clk 0:00:11]}  Bb1 {[%clk 0:00:30]} 45. Bc6 {[%clk 0:00:12]}  Bc2 {[%clk 0:00:30]} 46. Bd5 {[%clk 0:00:12]}  Bb1 {[%clk 0:00:30]} 47. Bc6 {[%clk 0:00:12]}  Bc2 {[%clk 0:00:31]} 1/2-1/2


[Site "https://www.chess.com"]

[Event "Titled Tuesday Blitz June 13 Early 2023"]
[White "Biastoch, Bennet"]
[Black "Vianello, Enrico"]
[WhiteFideId "12939889"]
[BlackFideId "810738"]
[WhiteElo "2222"]
[BlackElo "2162"]
[Result "1/2-1/2"]
[Round "2"]
[TimeControl "180+2"]
[Date "2023.06.13"]
[WhiteClock "0:00:19"]
[BlackClock "0:00:08"]
[Board "216"]

1. e4 {[%clk 0:03:00]}  d6 {[%clk 0:02:58]} 2. g3 {[%clk 0:02:58]}  g6 {[%clk 0:02:56]} 3. Bg2 {[%clk 0:02:58]}  Bg7 {[%clk 0:02:56]} 4. c3 {[%clk 0:02:58]}  c5 {[%clk 0:02:54]} 5. Ne2 {[%clk 0:02:57]}  Nc6 {[%clk 0:02:54]} 6. O-O {[%clk 0:02:57]}  e5 {[%clk 0:02:54]} 7. d3 {[%clk 0:02:56]}  Nge7 {[%clk 0:02:52]} 8. Nd2 {[%clk 0:02:55]}  O-O {[%clk 0:02:51]} 9. f4 {[%clk 0:02:56]}  f5 {[%clk 0:02:50]} 10. Nf3 {[%clk 0:02:52]}  h6 {[%clk 0:02:45]} 11. a4 {[%clk 0:02:51]}  Be6 {[%clk 0:02:44]} 12. Be3 {[%clk 0:02:45]}  b6 {[%clk 0:02:42]} 13. Qd2 {[%clk 0:02:43]}  Qd7 {[%clk 0:02:42]} 14. fxe5 {[%clk 0:02:43]}  dxe5 {[%clk 0:02:39]} 15. Bxh6 {[%clk 0:02:33]}  Rad8 {[%clk 0:02:24]} 16. Bxg7 {[%clk 0:02:29]}  Kxg7 {[%clk 0:02:24]} 17. Ne1 {[%clk 0:02:20]}  c4 {[%clk 0:02:18]} 18. d4 {[%clk 0:02:13]}  exd4 {[%clk 0:02:18]} 19. cxd4 {[%clk 0:02:13]}  Nxd4 {[%clk 0:02:16]} 20. Qc3 {[%clk 0:02:08]}  Kg8 {[%clk 0:02:10]} 21. Nxd4 {[%clk 0:01:40]}  Qxd4+ {[%clk 0:02:11]} 22. Qxd4 {[%clk 0:01:40]}  Rxd4 {[%clk 0:02:11]} 23. exf5 {[%clk 0:01:41]}  Nxf5 {[%clk 0:02:05]} 24. Nf3 {[%clk 0:01:37]}  Rd7 {[%clk 0:02:00]} 25. Ng5 {[%clk 0:01:36]}  Bd5 {[%clk 0:01:57]} 26. Rfd1 {[%clk 0:01:32]}  Rfd8 {[%clk 0:01:56]} 27. Bxd5+ {[%clk 0:01:15]}  Rxd5 {[%clk 0:01:56]} 28. Rxd5 {[%clk 0:01:16]}  Rxd5 {[%clk 0:01:56]} 29. Rc1 {[%clk 0:01:16]}  Nd6 {[%clk 0:01:32]} 30. Nf3 {[%clk 0:01:10]}  Ra5 {[%clk 0:01:26]} 31. Rd1 {[%clk 0:01:10]}  Nf5 {[%clk 0:01:24]} 32. Ra1 {[%clk 0:01:00]}  b5 {[%clk 0:01:20]} 33. Ne5 {[%clk 0:00:59]}  Kg7 {[%clk 0:01:13]} 34. Nc6 {[%clk 0:00:59]}  Ra6 {[%clk 0:01:07]} 35. Ne5 {[%clk 0:00:46]}  Ra5 {[%clk 0:00:55]} 36. g4 {[%clk 0:00:40]}  Nh6 {[%clk 0:00:48]} 37. Kf2 {[%clk 0:00:38]}  bxa4 {[%clk 0:00:44]} 38. Nxc4 {[%clk 0:00:37]}  Rc5 {[%clk 0:00:42]} 39. Rxa4 {[%clk 0:00:37]}  Nxg4+ {[%clk 0:00:39]} 40. Kg3 {[%clk 0:00:37]}  Nf6 {[%clk 0:00:29]} 41. Rxa7+ {[%clk 0:00:37]}  Kh6 {[%clk 0:00:29]} 42. Ne3 {[%clk 0:00:35]}  Rb5 {[%clk 0:00:26]} 43. Ra6 {[%clk 0:00:35]}  Ne4+ {[%clk 0:00:25]} 44. Kf4 {[%clk 0:00:35]}  Nc5 {[%clk 0:00:23]} 45. Rc6 {[%clk 0:00:33]}  Nd3+ {[%clk 0:00:23]} 46. Ke4 {[%clk 0:00:30]}  Nxb2 {[%clk 0:00:24]} 47. Ng4+ {[%clk 0:00:30]}  Kg5 {[%clk 0:00:23]} 48. Ne5 {[%clk 0:00:30]}  Rb4+ {[%clk 0:00:21]} 49. Ke3 {[%clk 0:00:27]}  Nd1+ {[%clk 0:00:20]} 50. Ke2 {[%clk 0:00:24]}  Nb2 {[%clk 0:00:19]} 51. Nf3+ {[%clk 0:00:23]}  Kf4 {[%clk 0:00:18]} 52. Rxg6 {[%clk 0:00:21]}  Re4+ {[%clk 0:00:18]} 53. Kf2 {[%clk 0:00:21]}  Nd3+ {[%clk 0:00:18]} 54. Kg2 {[%clk 0:00:21]}  Re2+ {[%clk 0:00:18]} 55. Kh3 {[%clk 0:00:20]}  Kxf3 {[%clk 0:00:18]} 56. Rg3+ {[%clk 0:00:20]}  Ke4 {[%clk 0:00:18]} 57. Rg4+ {[%clk 0:00:21]}  Nf4+ {[%clk 0:00:18]} 58. Kg3 {[%clk 0:00:21]}  Re3+ {[%clk 0:00:19]} 59. Kf2 {[%clk 0:00:22]}  Rf3+ {[%clk 0:00:18]} 60. Ke1 {[%clk 0:00:20]}  Rh3 {[%clk 0:00:18]} 61. Kf2 {[%clk 0:00:18]}  Rxh2+ {[%clk 0:00:15]} 62. Kg3 {[%clk 0:00:19]}  Rg2+ {[%clk 0:00:13]} 63. Kh4 {[%clk 0:00:19]}  Rh2+ {[%clk 0:00:09]} 64. Kg5 {[%clk 0:00:18]}  Rf2 {[%clk 0:00:08]} 65. Kh4 {[%clk 0:00:17]}  Kf5 {[%clk 0:00:07]} 66. Rg5+ {[%clk 0:00:17]}  Ke4 {[%clk 0:00:07]} 67. Rg4 {[%clk 0:00:18]}  Rh2+ {[%clk 0:00:07]} 68. Kg5 {[%clk 0:00:18]}  Rh5+ {[%clk 0:00:07]} 69. Kf6 {[%clk 0:00:18]}  Rf5+ {[%clk 0:00:07]} 70. Ke7 {[%clk 0:00:18]}  Re5+ {[%clk 0:00:07]} 71. Kf6 {[%clk 0:00:18]}  Rf5+ {[%clk 0:00:08]} 72. Ke7 {[%clk 0:00:18]}  Re5+ {[%clk 0:00:08]} 73. Kf6 {[%clk 0:00:19]}  Rf5+ {[%clk 0:00:08]} 1/2-1/2


[Site "https://www.chess.com"]

[Event "Titled Tuesday Blitz June 13 Early 2023"]
[White "Novikova, Margarita"]
[Black "Jimenez Garcia, Emmanuel"]
[WhiteFideId "14109689"]
[BlackFideId "6504779"]
[WhiteElo "2013"]
[BlackElo "2440"]
[Result "1/2-1/2"]
[Round "2"]
[TimeControl "180+2"]
[Date "2023.06.13"]
[WhiteClock "0:00:27"]
[BlackClock "0:00:03"]
[Board "217"]

1. e4 {[%clk 0:02:51]}  c5 {[%clk 0:02:58]} 2. Nc3 {[%clk 0:02:50]}  Qa5 {[%clk 0:02:58]} 3. d3 {[%clk 0:02:50]}  a6 {[%clk 0:02:58]} 4. g3 {[%clk 0:02:48]}  b5 {[%clk 0:02:58]} 5. Bd2 {[%clk 0:02:47]}  Bb7 {[%clk 0:02:57]} 6. Bg2 {[%clk 0:02:46]}  b4 {[%clk 0:02:57]} 7. Nd5 {[%clk 0:02:44]}  e6 {[%clk 0:02:58]} 8. Ne3 {[%clk 0:02:42]}  Nf6 {[%clk 0:02:58]} 9. f4 {[%clk 0:02:39]}  d5 {[%clk 0:02:56]} 10. a3 {[%clk 0:02:27]}  dxe4 {[%clk 0:02:47]} 11. axb4 {[%clk 0:02:26]}  Qc7 {[%clk 0:02:46]} 12. dxe4 {[%clk 0:02:09]}  Nxe4 {[%clk 0:02:44]} 13. Ne2 {[%clk 0:01:51]}  cxb4 {[%clk 0:02:38]} 14. O-O {[%clk 0:01:45]}  Bc5 {[%clk 0:02:37]} 15. Kh1 {[%clk 0:01:38]}  O-O {[%clk 0:02:36]} 16. Bc1 {[%clk 0:01:27]}  Nd7 {[%clk 0:02:32]} 17. Nd4 {[%clk 0:01:21]}  Ndf6 {[%clk 0:02:31]} 18. Nb3 {[%clk 0:01:18]}  Bb6 {[%clk 0:02:28]} 19. Qe2 {[%clk 0:01:08]}  a5 {[%clk 0:02:27]} 20. Re1 {[%clk 0:01:00]}  a4 {[%clk 0:02:26]} 21. Nd2 {[%clk 0:00:57]}  Rfc8 {[%clk 0:02:23]} 22. Nxe4 {[%clk 0:00:51]}  Nxe4 {[%clk 0:02:22]} 23. Ng4 {[%clk 0:00:45]}  f5 {[%clk 0:02:17]} 24. Ne3 {[%clk 0:00:43]}  Ba6 {[%clk 0:02:13]} 25. c4 {[%clk 0:00:36]}  bxc3 {[%clk 0:02:11]} 26. Qc2 {[%clk 0:00:36]}  cxb2 {[%clk 0:02:04]} 27. Qxb2 {[%clk 0:00:36]}  Bd3 {[%clk 0:01:52]} 28. Qa2 {[%clk 0:00:34]}  a3 {[%clk 0:01:44]} 29. Qxe6+ {[%clk 0:00:33]}  Kh8 {[%clk 0:01:38]} 30. Nxf5 {[%clk 0:00:32]}  Nf2+ {[%clk 0:01:38]} 31. Kg1 {[%clk 0:00:30]}  Ng4+ {[%clk 0:00:01]} 32. Kh1 {[%clk 0:00:27]}  Nf2+ {[%clk 0:00:02]} 33. Kg1 {[%clk 0:00:27]}  Ng4+ {[%clk 0:00:02]} 34. Kh1 {[%clk 0:00:27]}  Nf2+ {[%clk 0:00:03]} 1/2-1/2


[Site "https://www.chess.com"]

[Event "Titled Tuesday Blitz June 13 Early 2023"]
[White "Floresvillar Gonzalez, Luis Migu"]
[Black "Bueno, Alfeu Junior Varela"]
[WhiteFideId "5100542"]
[BlackFideId "2108879"]
[WhiteElo "2040"]
[BlackElo "2175"]
[Result "1/2-1/2"]
[Round "2"]
[TimeControl "180+2"]
[Date "2023.06.13"]
[WhiteClock "0:00:03"]
[BlackClock "0:00:05"]
[Board "221"]

1. d4 {[%clk 0:02:56]}  e6 {[%clk 0:03:00]} 2. c3 {[%clk 0:02:56]}  f5 {[%clk 0:03:00]} 3. Bf4 {[%clk 0:02:56]}  b6 {[%clk 0:03:00]} 4. Nd2 {[%clk 0:02:55]}  Bb7 {[%clk 0:03:00]} 5. f3 {[%clk 0:02:55]}  Nf6 {[%clk 0:03:00]} 6. Qc2 {[%clk 0:02:54]}  Nd5 {[%clk 0:02:43]} 7. Bg3 {[%clk 0:02:26]}  f4 {[%clk 0:02:29]} 8. Bf2 {[%clk 0:02:24]}  Bd6 {[%clk 0:02:04]} 9. Ne4 {[%clk 0:02:08]}  O-O {[%clk 0:01:56]} 10. Nxd6 {[%clk 0:02:07]}  cxd6 {[%clk 0:01:57]} 11. O-O-O {[%clk 0:02:04]}  Nc6 {[%clk 0:01:45]} 12. Kb1 {[%clk 0:02:03]}  a5 {[%clk 0:01:38]} 13. Nh3 {[%clk 0:01:51]}  b5 {[%clk 0:01:34]} 14. Qd2 {[%clk 0:01:47]}  Qf6 {[%clk 0:01:17]} 15. e4 {[%clk 0:01:38]}  fxe3 {[%clk 0:01:15]} 16. Bxe3 {[%clk 0:01:38]}  Nxe3 {[%clk 0:01:11]} 17. Qxe3 {[%clk 0:01:38]}  b4 {[%clk 0:01:06]} 18. c4 {[%clk 0:01:37]}  a4 {[%clk 0:01:02]} 19. Bd3 {[%clk 0:01:34]}  a3 {[%clk 0:00:57]} 20. b3 {[%clk 0:01:33]}  e5 {[%clk 0:00:52]} 21. dxe5 {[%clk 0:01:26]}  Nxe5 {[%clk 0:00:52]} 22. Be4 {[%clk 0:01:24]}  Nxc4 {[%clk 0:00:42]} 23. Qd4 {[%clk 0:01:12]}  Bxe4+ {[%clk 0:00:39]} 24. fxe4 {[%clk 0:01:08]}  Ne3 {[%clk 0:00:31]} 25. Qxf6 {[%clk 0:01:04]}  Rxf6 {[%clk 0:00:32]} 26. Rd2 {[%clk 0:01:01]}  Raf8 {[%clk 0:00:29]} 27. Rc1 {[%clk 0:00:51]}  Rf1 {[%clk 0:00:28]} 28. Re2 {[%clk 0:00:34]}  Ng4 {[%clk 0:00:27]} 29. Rxf1 {[%clk 0:00:25]}  Rxf1+ {[%clk 0:00:26]} 30. Kc2 {[%clk 0:00:25]}  Nxh2 {[%clk 0:00:22]} 31. Kd3 {[%clk 0:00:25]}  Rc1 {[%clk 0:00:20]} 32. Nf4 {[%clk 0:00:20]}  Ng4 {[%clk 0:00:20]} 33. Nd5 {[%clk 0:00:19]}  Ne5+ {[%clk 0:00:19]} 34. Kd2 {[%clk 0:00:17]}  Rc5 {[%clk 0:00:12]} 35. Nxb4 {[%clk 0:00:18]}  h5 {[%clk 0:00:12]} 36. Nc2 {[%clk 0:00:16]}  Ra5 {[%clk 0:00:11]} 37. b4 {[%clk 0:00:15]}  Ra4 {[%clk 0:00:11]} 38. b5 {[%clk 0:00:14]}  Ra5 {[%clk 0:00:10]} 39. Kc3 {[%clk 0:00:11]}  Rxb5 {[%clk 0:00:10]} 40. Nxa3 {[%clk 0:00:11]}  Ra5 {[%clk 0:00:11]} 41. Nc4 {[%clk 0:00:11]}  Rc5 {[%clk 0:00:11]} 42. Kd4 {[%clk 0:00:11]}  Rxc4+ {[%clk 0:00:11]} 43. Kd5 {[%clk 0:00:12]}  Ra4 {[%clk 0:00:11]} 44. Kxd6 {[%clk 0:00:12]}  Nc4+ {[%clk 0:00:11]} 45. Kxd7 {[%clk 0:00:11]}  Kf7 {[%clk 0:00:11]} 46. e5 {[%clk 0:00:11]}  Ra7+ {[%clk 0:00:10]} 47. Kc6 {[%clk 0:00:10]}  Re7 {[%clk 0:00:10]} 48. Kd5 {[%clk 0:00:10]}  Nb6+ {[%clk 0:00:10]} 49. Kd6 {[%clk 0:00:09]}  Nc8+ {[%clk 0:00:09]} 50. Kd5 {[%clk 0:00:09]}  Rd7+ {[%clk 0:00:09]} 51. Kc6 {[%clk 0:00:08]}  Ke6 {[%clk 0:00:10]} 52. a4 {[%clk 0:00:05]}  Ne7+ {[%clk 0:00:11]} 53. Kc5 {[%clk 0:00:04]}  Rd5+ {[%clk 0:00:11]} 54. Kc4 {[%clk 0:00:04]}  Rxe5 {[%clk 0:00:11]} 55. Rxe5+ {[%clk 0:00:04]}  Kxe5 {[%clk 0:00:12]} 56. a5 {[%clk 0:00:03]}  Nc6 {[%clk 0:00:12]} 57. a6 {[%clk 0:00:02]}  Kd6 {[%clk 0:00:12]} 58. Kd3 {[%clk 0:00:01]}  Kc7 {[%clk 0:00:12]} 59. Ke4 {[%clk 0:00:02]}  Kb6 {[%clk 0:00:11]} 60. Kf5 {[%clk 0:00:02]}  Kxa6 {[%clk 0:00:11]} 61. Kg6 {[%clk 0:00:03]}  h4 {[%clk 0:00:08]} 62. Kxg7 {[%clk 0:00:02]}  Ne5 {[%clk 0:00:07]} 63. Kf6 {[%clk 0:00:03]}  Nd3 {[%clk 0:00:04]} 64. Kg5 {[%clk 0:00:03]}  Ne1 {[%clk 0:00:05]} 65. Kxh4 {[%clk 0:00:03]}  Nxg2+ {[%clk 0:00:05]} 1/2-1/2


[Site "https://www.chess.com"]

[Event "Titled Tuesday Blitz June 13 Early 2023"]
[White "LangesNasenhaar"]
[Black "Hartikainen, Jarmo"]
[BlackFideId "503134"]
[WhiteElo "2458"]
[BlackElo "2130"]
[Result "1-0"]
[Round "2"]
[TimeControl "180+2"]
[Date "2023.06.13"]
[WhiteClock "0:00:36"]
[BlackClock "0:00:05"]
[Board "222"]

1. Nf3 {[%clk 0:02:59]}  Nf6 {[%clk 0:02:59]} 2. g3 {[%clk 0:03:00]}  g6 {[%clk 0:02:59]} 3. b3 {[%clk 0:03:00]}  b6 {[%clk 0:02:55]} 4. Bb2 {[%clk 0:03:00]}  Bb7 {[%clk 0:02:54]} 5. Bg2 {[%clk 0:03:00]}  Bg7 {[%clk 0:02:55]} 6. c4 {[%clk 0:03:00]}  c5 {[%clk 0:02:53]} 7. O-O {[%clk 0:02:57]}  O-O {[%clk 0:02:53]} 8. d4 {[%clk 0:02:57]}  d5 {[%clk 0:02:49]} 9. dxc5 {[%clk 0:02:51]}  dxc4 {[%clk 0:02:44]} 10. bxc4 {[%clk 0:02:43]}  bxc5 {[%clk 0:02:40]} 11. Qb3 {[%clk 0:02:42]}  Qb6 {[%clk 0:02:38]} 12. Nc3 {[%clk 0:02:41]}  Ne4 {[%clk 0:01:55]} 13. Rfc1 {[%clk 0:02:32]}  Qxb3 {[%clk 0:01:28]} 14. axb3 {[%clk 0:02:32]}  Nxc3 {[%clk 0:01:25]} 15. Bxc3 {[%clk 0:02:32]}  Bxc3 {[%clk 0:01:21]} 16. Rxc3 {[%clk 0:02:32]}  Na6 {[%clk 0:01:13]} 17. Ne5 {[%clk 0:02:07]}  Bxg2 {[%clk 0:01:07]} 18. Kxg2 {[%clk 0:02:07]}  Nb4 {[%clk 0:01:03]} 19. Nd7 {[%clk 0:02:03]}  Rfc8 {[%clk 0:00:59]} 20. Ra5 {[%clk 0:02:02]}  Rc7 {[%clk 0:00:38]} 21. Nxc5 {[%clk 0:01:59]}  Nc6 {[%clk 0:00:35]} 22. Ra3 {[%clk 0:01:42]}  Nd4 {[%clk 0:00:30]} 23. Na6 {[%clk 0:01:38]}  Rc6 {[%clk 0:00:22]} 24. e3 {[%clk 0:01:36]}  Nb5 {[%clk 0:00:21]} 25. Nb4 {[%clk 0:01:27]}  Rcc8 {[%clk 0:00:19]} 26. cxb5 {[%clk 0:01:25]}  Rxc3 {[%clk 0:00:19]} 27. Nc6 {[%clk 0:01:26]}  Rc5 {[%clk 0:00:16]} 28. Ra5 {[%clk 0:01:14]}  Kf8 {[%clk 0:00:14]} 29. b4 {[%clk 0:01:07]}  Rc2 {[%clk 0:00:12]} 30. Nxa7 {[%clk 0:01:04]}  Rb2 {[%clk 0:00:12]} 31. Ra4 {[%clk 0:00:52]}  Rxb4 {[%clk 0:00:11]} 32. Rxb4 {[%clk 0:00:52]}  Rxa7 {[%clk 0:00:12]} 33. b6 {[%clk 0:00:51]}  Rb7 {[%clk 0:00:12]} 34. Kf3 {[%clk 0:00:50]}  Ke8 {[%clk 0:00:13]} 35. Ke4 {[%clk 0:00:50]}  Kd7 {[%clk 0:00:13]} 36. Kd5 {[%clk 0:00:50]}  e6+ {[%clk 0:00:12]} 37. Kc5 {[%clk 0:00:50]}  f5 {[%clk 0:00:12]} 38. Rd4+ {[%clk 0:00:38]}  Ke7 {[%clk 0:00:11]} 39. Kc6 {[%clk 0:00:38]}  Rb8 {[%clk 0:00:10]} 40. Rd7+ {[%clk 0:00:37]}  Ke8 {[%clk 0:00:10]} 41. Rxh7 {[%clk 0:00:36]}  e5 {[%clk 0:00:05]} 42. Rh8+ {[%clk 0:00:36]} 1-0


[Site "https://www.chess.com"]

[Event "Titled Tuesday Blitz June 13 Early 2023"]
[White "Baker, Chris W"]
[Black "Sztokbant, Bernardo Vainzoff"]
[WhiteFideId "401676"]
[BlackFideId "2115956"]
[WhiteElo "2119"]
[BlackElo "2222"]
[Result "0-1"]
[Round "2"]
[TimeControl "180+2"]
[Date "2023.06.13"]
[WhiteClock "0:00:08"]
[BlackClock "0:00:09"]
[Board "223"]

1. d4 {[%clk 0:03:00]}  d5 {[%clk 0:02:59]} 2. c4 {[%clk 0:02:59]}  dxc4 {[%clk 0:02:59]} 3. Nf3 {[%clk 0:02:58]}  Nf6 {[%clk 0:02:59]} 4. e3 {[%clk 0:02:58]}  e6 {[%clk 0:02:59]} 5. Bxc4 {[%clk 0:02:57]}  c5 {[%clk 0:03:00]} 6. O-O {[%clk 0:02:57]}  Nc6 {[%clk 0:03:00]} 7. dxc5 {[%clk 0:02:51]}  Qxd1 {[%clk 0:02:58]} 8. Rxd1 {[%clk 0:02:50]}  Bxc5 {[%clk 0:02:59]} 9. a3 {[%clk 0:02:49]}  O-O {[%clk 0:02:58]} 10. b4 {[%clk 0:02:47]}  Be7 {[%clk 0:02:59]} 11. Bb2 {[%clk 0:02:47]}  b6 {[%clk 0:02:59]} 12. Nbd2 {[%clk 0:02:44]}  Bb7 {[%clk 0:02:59]} 13. Nb3 {[%clk 0:02:39]}  Rac8 {[%clk 0:02:56]} 14. Rac1 {[%clk 0:02:37]}  Rfd8 {[%clk 0:02:49]} 15. Be2 {[%clk 0:02:33]}  Kf8 {[%clk 0:02:46]} 16. Nbd4 {[%clk 0:02:28]}  Nxd4 {[%clk 0:02:46]} 17. Nxd4 {[%clk 0:02:24]}  Rxc1 {[%clk 0:02:31]} 18. Rxc1 {[%clk 0:02:24]}  Ne8 {[%clk 0:02:26]} 19. Bf3 {[%clk 0:02:18]}  Bxf3 {[%clk 0:02:25]} 20. Nxf3 {[%clk 0:02:16]}  Bf6 {[%clk 0:02:20]} 21. Bxf6 {[%clk 0:02:15]}  Nxf6 {[%clk 0:02:21]} 22. Kf1 {[%clk 0:02:15]}  Rd3 {[%clk 0:02:05]} 23. Rc7 {[%clk 0:02:00]}  Rxa3 {[%clk 0:02:03]} 24. Ne5 {[%clk 0:02:00]}  Ke8 {[%clk 0:01:49]} 25. Nxf7 {[%clk 0:01:47]}  Ne4 {[%clk 0:01:39]} 26. f3 {[%clk 0:01:40]}  Ra1+ {[%clk 0:01:29]} 27. Ke2 {[%clk 0:01:39]}  Ra2+ {[%clk 0:01:29]} 28. Kd3 {[%clk 0:01:31]}  Nf6 {[%clk 0:01:23]} 29. Nd6+ {[%clk 0:01:28]}  Kf8 {[%clk 0:01:22]} 30. Rf7+ {[%clk 0:01:25]}  Kg8 {[%clk 0:01:22]} 31. Re7 {[%clk 0:01:17]}  Rxg2 {[%clk 0:01:02]} 32. Rxa7 {[%clk 0:01:16]}  h5 {[%clk 0:00:52]} 33. Rb7 {[%clk 0:01:00]}  Rxh2 {[%clk 0:00:48]} 34. Rxb6 {[%clk 0:00:59]}  h4 {[%clk 0:00:42]} 35. b5 {[%clk 0:00:46]}  h3 {[%clk 0:00:37]} 36. Rc6 {[%clk 0:00:38]}  Rb2 {[%clk 0:00:28]} 37. Rc1 {[%clk 0:00:27]}  h2 {[%clk 0:00:21]} 38. Rh1 {[%clk 0:00:24]}  Nh5 {[%clk 0:00:19]} 39. Nc4 {[%clk 0:00:20]}  Ng3 {[%clk 0:00:13]} 40. Nxb2 {[%clk 0:00:18]}  Nxh1 {[%clk 0:00:13]} 41. b6 {[%clk 0:00:18]}  Nf2+ {[%clk 0:00:13]} 42. Ke2 {[%clk 0:00:18]}  h1=Q {[%clk 0:00:11]} 43. b7 {[%clk 0:00:08]}  Qh2 {[%clk 0:00:09]} 0-1


[Site "https://www.chess.com"]